Cogmind - Beta 16.1 *** ADVENTURER MODE // 2026.02.23 @ 01:31:36 Player: Ms. V3-11A Result: Destroyed by XA-WIK(R) with Subdweller Machine Gun Performance ------------- Evolutions (0) 0 Regions Visited (2) 400 Robots Destroyed (17) 85 Value Destroyed (534) 534 Prototype IDs (2) 40 Alien Tech Used (0) 0 Bonus (0) 0 TOTAL SCORE: 1059 Bonus ------- None Cogmind --------- Core Integrity 0/250 Matter 208/300 Energy 171/200 System Corruption 0% Temperature Cool (0) Movement Treading (320) Ox2 Location -10/Subcaves Parts ------- > --- POWER (1) -------- Subdweller Power Source > --- PROPULSION (2) --- Light Treads > --- UTILITY (2) ------ High-capacity Storage Unit Light Armor Plating > --- WEAPON (2) ------- Medium Laser Small Laser > --- INVENTORY (20) --- Subdweller Power Source Subdweller Power Source Heat Sink Disposable Heat Sink High-capacity Matter Pod (200) Subdweller Optics Power Shielding Scrap Shield Makeshift System Restoration Module Medium Laser Grenade Launcher Peak State ------------ > --- POWER ------------ Ion Engine > --- PROPULSION ------- Light Treads Light Treads > --- UTILITY ---------- High-capacity Storage Unit Light Armor Plating > --- WEAPON ----------- Subdweller Laser Assault Rifle > --- INVENTORY -------- Subdweller Power Source Subdweller Power Source Subdweller Power Source Light Treads Heat Sink Disposable Heat Sink Large Matter Pod Subdweller Optics Power Shielding Light Armor Plating Scrap Shield Makeshift System Restoration Module Heavy Riot Gun Medium Laser Medium Laser Small Laser Assault Rifle Grenade Launcher [Rating: 11] Favorites ----------- Power Ion Engine Engine Ion Engine Propulsion Light Treads Treads Light Treads Leg Aluminum Leg Utility High-capacity Storage Unit Device Seismic Detector Storage High-capacity Storage Unit Protection Light Armor Plating Weapon Medium Laser Energy Gun Medium Laser Ballistic Gun Assault Rifle Launcher Grenade Launcher Build | -11 -10 -10 ------- Run | Yrd Mat Sub Slots Evolved . | . . . Power . | . . . Propulsion . | . . . Utility . | . . . Weapon . | . . . Parts Attached 18 | . 10 8 Power 2 | . 1 1 Engine 2 | . 1 1 Core . | . . . Reactor . | . . . Propulsion 3 | . 2 1 Treads 3 | . 2 1 Leg . | . . . Wheel . | . . . Hover . | . . . Flight . | . . . Utility 4 | . 3 1 Device 1 | . 1 . Storage 1 | . 1 . Processor . | . . . Hackware . | . . . Protection 2 | . 1 1 Artifact . | . . . Weapon 9 | . 4 5 Energy Gun 6 | . 2 4 Energy Cannon . | . . . Ballistic Gun 2 | . 1 1 Ballistic Cannon . | . . . Launcher 1 | . 1 . Special Weapon . | . . . Impact Weapon . | . . . Slashing Weapon . | . . . Piercing Weapon . | . . . Special Melee Weapon . | . . . Unidentified Prototypes . | . . . Parts Lost 7 | . . 7 Power 1 | . . 1 Propulsion 2 | . . 2 Utility 1 | . . 1 Weapon 3 | . . 3 Highest Loss Streak 7 | . . 7 To Critical Strikes . | . . . Average Backups 11 | 6 7 16 Power . | 1 . 2 Propulsion . | 4 . . Utility 4 | . 2 7 Weapon 4 | 1 3 5 Tool/Special . | . . . Unused Backups 13 | . 2 11 Power 3 | . 1 2 Propulsion . | . . . Utility 9 | . 1 8 Weapon 1 | . . 1 Tool/Special . | . . . Average Slot Usage (%) 98 | . 99 97 Engine 13 | . 14 13 Treads 26 | . 26 26 Leg 1 | . 1 . Storage 14 | . 14 14 Protection 13 | . 13 13 Energy Gun 17 | . 19 13 Ballistic Gun 9 | . 7 13 Peak Build Rating 11 | 6 8 11 Average Rating 8 | 6 7 10 On Entrance 6 | 6 6 8 Avg Prop Armor Cover (%) . | . . . Naked Turns . | . . . Heaviest Build 54 | 12 53 54 Greatest Support 40 | 20 40 40 Greatest Overweight (x) 1 | . 1 1 Average Overweight (x) . | . . 1 Largest Inventory Capacity 20 | 8 20 20 Average Capacity 19 | 8 19 20 Most Carried 20 | 6 11 20 Average Carried 11 | 6 7 17 Final Capacity 20 | 8 20 20 Final Carried 12 | 6 10 12 Class Distribution -------------------- 100% | Mutant Dominant Class ---------------- Mutant | -10/Materials Mutant | -10/Subcaves Resources | -11 -10 -10 ----------- Run | Yrd Mat Sub Matter Collected 987 | 200 387 400 Remotely . | . . . Salvage Created 702 | . 467 235 Parts 39 | . 23 16 Haulers Intercepted 1 | . 1 . Recyclers Shooed 1 | . 1 . Parts Field Recycled . | . . . Retrieved Matter . | . . . Parts Self-Destructed 7 | . . 7 Prevented . | . . . Parts Restored . | . . . Kills | -11 -10 -10 ------- Run | Yrd Mat Sub Combat Hostiles Destroyed 14 | . 8 6 Guns 14 | . 8 6 Classes Destroyed 5 | . 4 1 Hauler 1 | . 1 . Recycler 2 | . 2 . Swarmer 2 | . 2 . Grunt 6 | . 6 . Subdweller 6 | . . 6 Best Kill Streak 3 | . 3 2 Combat Bots Only 2 | . 2 2 Max Kills in Single Turn 1 | . 1 1 Gunslinging . | . . . Exploded . | . . . Melee . | . . . Uniques/NPCs Destroyed . | . . . Combat | -11 -10 -10 -------- Run | Yrd Mat Sub Hostile Shots Fired 129 | . 47 82 Missed 38 | . 14 24 Hits 91 | . 33 58 Projectile 91 | . 33 58 AOE 4 | . . 4 Critical Strikes 2 | . 1 1 Damage Taken 1326 | . 316 1010 Core 253 | . 51 202 Absorbed by Shields . | . . . Ignored by Resistances 380 | . 95 285 Core Remaining (%) 100 | 100 . . Volleys Fired 97 | . 33 64 Largest 2 | . 2 2 Hottest 90 | . 90 90 Shots Fired 161 | . 64 97 Gun 150 | . 63 87 Cannon . | . . . Launcher 11 | . 1 10 Special . | . . . Kinetic 54 | . 15 39 Thermal 90 | . 48 42 Explosive 11 | . 1 10 Electromagnetic 6 | . . 6 Robot Hit Streak 23 | . 13 23 Robot Miss Streak 2 | . 2 1 Penetration Max . | . . . Secondary Targets 4 | . 2 2 Max Gunslinging Chain 1 | . 1 1 Shots Hit Robots 96 | . 47 49 Core Hits 36 | . 23 13 Critical Kills 1 | . . 1 Critical Parts Destroyed . | . . . Critical Strikes 1 | . . 1 Destroy 1 | . . 1 Melee Attacks . | . . . Impact . | . . . Slashing . | . . . Piercing . | . . . Sneak Attacks . | . . . Combat Hostiles . | . . . Follow-up Attacks . | . . . Damage Inflicted 1238 | . 661 577 Guns 1157 | . 580 577 Cannons . | . . . Explosions 67 | . 67 . Melee . | . . . Ramming 14 | . 14 . Kinetic 293 | . 127 166 Thermal 742 | . 453 289 Explosive 67 | . 67 . Electromagnetic 122 | . . 122 Impact . | . . . Slashing . | . . . Piercing . | . . . Highest Corruption . | . . . Average Corruption . | . . . Corruption Purged . | . . . Corruption Blocked . | . . . Overload Shots . | . . . Overflow Damage . | . . . Projectiles . | . . . Explosions . | . . . Melee . | . . . Knockbacks . | . . . Impact . | . . . Kinetic . | . . . Secondary . | . . . Self-Inflicted Damage 16 | . 16 . Shots 1 | . 1 . Rammed 3 | . 3 . Targets Rammed 3 | . 3 . Kicked . | . . . Crushed . | . . . Highest Temperature 312 | . 312 . Average Temperature 96 | . 96 . Received Heat Transfer 300 | . 240 60 Effects 2 | . 2 . Interference 2 | . 2 . Siege Activations . | . . . Martial Activations . | . . . Shielding Activations . | . . . Robots Disrupted . | . . . Combat Hostiles . | . . . Robots Corrupted . | . . . Combat Hostiles . | . . . Parts Fried . | . . . Impact Corruptions . | . . . Robots Melted . | . . . Combat Hostiles . | . . . Parts Melted 3 | . 3 . Heat Transferred 1944 | . 1250 694 Parts Sabotaged . | . . . Parts Stolen . | . . . Parts Stripped . | . . . Power Chain Reactions . | . . . Alert | -11 -10 -10 ------- Run | Yrd Mat Sub Maximum Alert Level . | . . . Low Security (%) 100 | 100 100 . Level 1 . | . . . Level 2 . | . . . Level 3 . | . . . Level 4 . | . . . Level 5 . | . . . High Security . | . . . Max Security . | . . . Peak Influence 92 | . 92 . Initial . | . . . Average 12 | . 12 . Influence Increases 267 | . 267 . Destroy 0b10 Robot/C 160 | . 160 . Destroy 0b10 Robot/NC 15 | . 15 . Destroy Leader 42 | . 42 . Successful Hack 5 | . 5 . Disable Machine 27 | . 27 . Destroy Structure 18 | . 18 . Influence Decreases 267 | . 267 . Time Decay 267 | . 267 . Squads Dispatched 2 | . 2 . Investigation 2 | . 2 . Extermination . | . . . Reinforcement . | . . . Assault . | . . . Garrison . | . . . Intercept . | . . . Searches Triggered . | . . . Construction Impeded . | . . . Haulers Reinforced . | . . . Active Scanning Responses . | . . . Cargo Convoy Interrupts . | . . . Stealth | -11 -10 -10 --------- Run | Yrd Mat Sub Distress Signals 1 | . 1 . Communications Jammed . | . . . Distress Signals . | . . . Times Spotted 22 | . 14 8 Peak Tracking Total 3 | . 3 3 Tactical Retreats . | . . . Traps | -11 -10 -10 ------- Run | Yrd Mat Sub Traps Triggered 1 | . 1 . Indirectly . | . . . Trap Hack Attempts . | . . . Triggered . | . . . Disarmed . | . . . Reprogrammed . | . . . Reused . | . . . Traps Extracted . | . . . Installed . | . . . Triggered . | . . . Machines | -11 -10 -10 ---------- Run | Yrd Mat Sub Machines Disabled 3 | . 3 . Max in Single Turn 2 | . 2 . Machines Repaired . | . . . Machines Dismantled . | . . . Machines Sabotaged . | . . . Overloaded Fab Kills . | . . . Hacking | -11 -10 -10 --------- Run | Yrd Mat Sub Machines Accessed 3 | . 3 . Terminals 3 | . 3 . Fabricators . | . . . Repair Stations . | . . . Recycling Units . | . . . Scanalyzers . | . . . Garrison Access . | . . . Total Hacks 9 | . 9 . Successful 5 | . 5 . Failed 4 | . 4 . Catastrophic . | . . . Database Lockouts . | . . . Manual 4 | . 4 . Terminals 9 | . 9 . Fabricators . | . . . Repair Stations . | . . . Recycling Units . | . . . Scanalyzers . | . . . Garrison Access . | . . . Terminal Hacks 2 | . 2 . Prototype ID Bank 1 | . 1 . Branch Access Points 1 | . 1 . Fabricator Hacks . | . . . Repair Station Hacks . | . . . Recycling Unit Hacks . | . . . Scanalyzer . | . . . Garrison Access Hacks . | . . . Unauthorized Hacks 3 | . 3 . Terminals 3 | . 3 . Botnet 3 | . 3 . Fabricators . | . . . Repair Stations . | . . . Recycling Units . | . . . Scanalyzers . | . . . Garrison Access . | . . . Data Cores Recovered . | . . . Used . | . . . Hacking Detections 3 | . 3 . Full Trace Events . | . . . Feedback Events . | . . . Feedback Blocked . | . . . Robot Schematics Acquired . | . . . Robots Built . | . . . Authchips . | . . . Time . | . . . Total Robot Build Rating . | . . . Part Schematics Acquired . | . . . Parts Built . | . . . Authchips . | . . . Time . | . . . Total Part Build Rating . | . . . Part Studies Acquired . | . . . Parts Repaired . | . . . Time . | . . . Parts Recycled . | . . . Recycled Matter . | . . . Retrieved Matter . | . . . Retrieved Components . | . . . Parts Scanalyzed . | . . . Part Schematics Acquired . | . . . Parts Damaged . | . . . Bothacking | -11 -10 -10 ------------ Run | Yrd Mat Sub Used RIF Installer . | . . . Robots Hacked . | . . . Non-combat . | . . . Combat . | . . . Robot Hacks Applied . | . . . Relay Couplers Released . | . . . Fabnet Peak Effective % . | . . . Robots Rewired . | . . . Allies Hacked . | . . . Hacks Repelled . | . . . Allies | -11 -10 -10 -------- Run | Yrd Mat Sub Total Allies . | . . . Largest Group . | . . . Highest-Rated Group . | . . . Highest-Rated Ally . | . . . Total Orders . | . . . Ally Attacks . | . . . Total Damage . | . . . Kills . | . . . Allies Corrupted . | . . . Allies Melted . | . . . Intel | -11 -10 -10 ------- Run | Yrd Mat Sub Active Infowar (turns) 65 | . 65 . Seismic 65 | . 65 . Robot Analysis Total . | . . . Derelict Logs Recovered 1 | . . 1 Drone Launches . | . . . Drone Recoveries . | . . . Exploration | -11 -10 -10 ------------- Run | Yrd Mat Sub Turns Passed 2482 | 3 1460 1019 Spaces Moved 909 | 3 566 340 Core . | . . . Treads 836 | . 496 340 Legs 73 | 3 70 . Wheels . | . . . Hover . | . . . Flight . | . . . Fastest Speed 120 | 120 120 240 Average Speed 230 | 120 225 240 Slowest Speed 240 | 120 240 240 Overloaded Moves . | . . . Propulsion Burnouts . | . . . Robots Hopped . | . . . Potential Cave-ins . | . . . Cave-ins Triggered . | . . . Exploration Rate (%) 31 | 2 72 21 Regions Visited 2 Branch Regions 1 Pre-discovered Areas . | . . . Known Exits Taken . | . . . Unknown Exits Taken 2 | 1 1 . Scrap Searched 4 | . . 4 Spaces Dug 9 | . 9 . Terrain Destroyed 70 | . 28 42 Melee . | . . . Projectile . | . . . AOE 70 | . 28 42 Terrain Rammed . | . . . Walls Destroyed . | . . . Machines Disabled . | . . . Actions | -11 -10 -10 --------- Run | Yrd Mat Sub Total 1134 | 2 685 447 Wait 74 | . 53 21 Move 907 | 2 565 340 Hop . | . . . Pick Up 21 | . 12 9 Fast Attach 3 | . 2 1 Attach 9 | . 3 6 Detach . | . . . Swap 8 | . 5 3 Drop 12 | . 9 3 Fire 97 | . 33 64 Melee . | . . . Ram . | . . . Kick . | . . . Crush 3 | . 3 . Escape Stasis . | . . . Rewire . | . . . Trap . | . . . Miscellaneous . | . . . Route ------- -11/Scrapyard -10/Materials (discovered 3 exits: [*Mat] / *Min / [*Sub]) -10/Subcaves History --------- Turn | Location | Event 1 | -11/Scrapyard | Discovered new exit (range 0) 4 | -11/Scrapyard | Entered Materials 170 | -10/Materials | Discovered new exit (range 7) 313 | -10/Materials | Build established: Mutant 561 | -10/Materials | Identified exit to Mines 581 | -10/Materials | Discovered new exit (range 9) 804 | -10/Materials | Derelicts attacked the area 1464 | -10/Materials | Entered Subcaves 1465 | -10/Subcaves | Approached by a straggling Scientist 1670 | -10/Subcaves | A swath of the cavern ceiling suddenly collapsed 1877 | -10/Subcaves | Learned Materials garrison access intel 2418 | -10/Subcaves | Ambushed by Subdweller buried in earth 2427 | -10/Subcaves | Ambushed by Subdweller buried in earth 2434 | -10/Subcaves | Core integrity fell below 50% 2464 | -10/Subcaves | Core integrity fell below 20% 2483 | -10/Subcaves | Destroyed by XA-WIK(R) with Subdweller Machine Gun Last Messages --------------- JW-GLX(c): "I think it's somewhere north of here" 02390_ Subatomizers dissect the Sub. Power Source. 02390_ Acquired 30 matter. 02416_ Assault Rifle destroyed. 02416_ JW-GLX(c) destroyed. [Achievement: Do Not Disturb] 02419_ XA-WIK(R): "ARGHSUB!" 02427_ Lgt. Armor Plating destroyed. 02428_ 7I-SQN(R): "GOODGOOD!" 02430_ Subatomizers dissect the Broken Sub. Laser. 02431_ Lgt. Treads destroyed. 02443_ Subatomizers dissect the Broken Sub. Laser. 02445_ Assault Rifle destroyed. 02448_ Ion Engine destroyed. 02454_ Subatomizers dissect the Broken Sub. Laser. 02456_ Hvy. Riot Gun destroyed. 02459_ 7I-SQN(R) misfires. 02465_ Subatomizers dissect the Broken Sub. Laser. 02477_ 7I-SQN(R) destroyed. 02477_ Switching to secondary target: QN-4I2(R). Map ----- +----------------------------------------------------+ | ?????????????????????????????????????????????????? | | ?????????????????????????????????????????????????? | | ?????????????????????????????????????????????????? | | ?????????????????????????????????????????????????? | | ?????????????????????????????????????????????????? | | ?????????????????????????????????????????????????? | | ?????????????????????????????????????????????????? | | ?????????????????????????????????????????????????? | | ?????????????????????????????????????????????????? | | ?????????????????????????#???????????????????????? | | ???????????????????????#? ?????????????????###???? | | ????????????????????#" # ????????????????## #???? | | ???????????????????? "" ???????????????## ##???? | | ???????????????????? "" ??????????????## #???? | | ????????????????????" #??????????#???# #???? | | ???????????????????#"" #?????????## ??## #???? | | ?????????????????##"""" #?????????# ??# ####? | | ?????????????????# """"###???????# ?# #? | | ?????????????????? """#"#####???## ## ##? | | ????????????????? ?#" """"# ###?# #?? | | ????????????????## ?# " # #### ####?? | | ????????????????# "?## "##### #?# # #????? | | ??????????????#### ""?##### #### #?#?## ####?? | | ??????????????#" """"## ;;; # [#????## ##? | | ???????# ????# ;;;%= ###???## ## | | ????????# ## @ #???## # | | ?????????# ##???# | | ??????????# ##?##### ### | | ???????????# R ! #?## ###?## | | ???????????### R #?# #?##### | | ?????????????# & #?# ### # # | | ????????????# #??# | | ???????????# ;# #??# % | | ?????????? ; ;#&#### % # | | ???????? ;; ;; |! &## ### | | ???????? ; ## & & #?## | | ????????? #### ### && ## #?## | | ????????? ????## #### #?## | | ???????????????## ## #??# #?? | | ????????????????#### # ?### #??# #?? | | ??????????????????? ## ????# ##??# #?? | | ??????????????????? ?# ??## ##???## #?? | | ??????????????????? #?# ???# #??????# ##?? | | ??????????????????? ??# ???# #???????##??? | | ????????????????????????# ##?# #???????????? | | ????????????????????????# #?# #???????????? | | ?????????????????????????# ###* ! ##???????????? | | ????????????????????###????# ## = #????????????? | | ???????????????????## ##??## ##???????????? | | ??????????????????## #### #???????????? | +----------------------------------------------------+ Best States ------------- Heat Dissipation 25 Energy Generation 15 Energy Capacity 250 Matter Stores 300 Matter Capacity 300 Sight Range 16 Terrain Scan Density 10 Armor Coverage 150 Resistance: KI 20 Resistance: TH 20 Resistance: EX 20 Resistance: EM 20 Resistance: I 20 Resistance: S 20 Resistance: P 20 Evasion (%) 55 Recoil Reduction 2 Offensive Hacking 10 Item Schematics ----------------- None Robot Schematics ------------------ None Fabricated ------------ Nothing Repaired ---------- Nothing Studied --------- None Alien Tech Used ----------------- None Achievements -------------- Do Not Disturb Challenges ------------ None Game ------ Seed EnergyPitchforkGenerator Manual? 0 Play Time 00:15:35 Cumulative 459.3 hours Start 2026.02.23 @ 01:18:11 End 2026.02.23 @ 01:31:36 Sessions 1 Manual Loads 0 Difficulty Adventurer Special Mode None Game No. 335 Rogue 63 Adventurer 246 Explorer 26 Win Type - Total 2 Types 2/0/0/0/0/0/0/0/0/0 Lore% 83 Gallery% 70 Achievement% 47 Wizard Run 0 Options --------- Layout 2 ASCII 0 Keyboard 0 Movement Mouse Keybinds 0 Fullscreen 0 Font 16/Cog Map View 64x51 Zoom Use 0% Tactical HUD 1 Map Filters NONE Filters BRIGHTNESS(115)|SATURATION(100)|LOW_CONTRAST(0,16,30) Steam 1 RUN: dcd1f93f-b96f-43d1-bfb9-fe8952b61a9c